bitfinex/quotes_BTCUSD_20260127
["timestamp","ask_amount","ask_price","bid_price","bid_amount"]
[1769534212385,0.05687153,87918.0,87904.0,0.0501957]
[1769534212586,0.0647406,87917.0,87904.0,0.0501957]
[1769534213138,0.05687099,87919.0,87904.0,0.0501557]
[1769534213304,0.39688662,87920.0,87904.0,0.0501557]
[1769534213506,0.3400166,87920.0,87904.0,0.0501557]
[1769534213713,0.05687099,87919.0,87904.0,0.0501557]
[1769534213908,0.05687024,87920.0,87904.0,0.0501557]
[1769534214114,0.17096856,87914.0,87904.0,0.0501557]
[1769534214291,0.17096856,87914.0,87904.0,0.02720312]
[1769534214292,0.19431295,87914.0,87904.0,0.02720312]
[1769534214496,0.06688033,87904.0,87884.0,0.02275688]
[1769534214717,0.34036697,87900.0,87884.0,0.02322344]
[1769534215636,0.15793796,87902.0,87884.0,0.02322344]
[1769534216625,0.34036697,87900.0,87881.0,0.0004053]
[1769534216822,0.34036697,87890.0,87874.0,0.02275688]
[1769534217661,0.34036697,87890.0,87870.0,0.16194989]
[1769534217662,0.05689036,87889.0,87875.0,0.02275688]
[1769534217822,0.39725656,87890.0,87876.0,0.02275688]
[1769534218020,0.39725656,87890.0,87869.0,0.02464465]
[1769534218021,0.34036697,87890.0,87869.0,0.02464465]
[1769534218227,0.4152862,87890.0,87865.0,0.16194989]
[1769534218439,0.05689094,87888.0,87865.0,0.16194989]
[1769534218638,0.34036697,87880.0,87866.0,0.02275688]
[1769534219104,0.34036697,87880.0,87837.0,0.0002]
[1769534219105,0.01,87866.0,87837.0,0.0002]
[1769534219326,0.02499999,87845.0,87825.0,0.08418408]
[1769534219564,0.01,87866.0,87809.0,0.16194989]
[1769534219565,0.02499999,87839.0,87826.0,0.02275688]
[1769534219956,0.02499999,87839.0,87810.0,0.02275688]
[1769534219957,0.02499999,87838.0,87809.0,0.16194989]
[1769534220294,0.34036697,87830.0,87808.0,0.03813513]
[1769534220509,0.34036697,87830.0,87780.0,0.14498216]
[1769534220510,0.00046599,87838.0,87773.0,0.16194989]
[1769534220511,0.01,87808.0,87773.0,0.16194989]
[1769534220780,0.02275688,87828.0,87773.0,0.16194989]
[1769534220781,0.11688,87811.0,87773.0,0.16194989]
[1769534220901,0.15793796,87809.0,87770.0,0.0306307]
[1769534221100,0.27481796,87811.0,87771.0,0.16194989]
[1769534221325,0.15793796,87798.0,87770.0,0.0306307]
[1769534221527,0.03203662,87810.0,87771.0,0.16194989]
[1769534221744,0.02334439,87809.0,87771.0,0.16194989]
[1769534222100,0.02334439,87809.0,87771.0,0.18659454]
[1769534222311,0.15840366,87810.0,87770.0,0.0306307]
[1769534222312,0.11692,87808.0,87775.0,0.04554823]
[1769534222517,0.0004657,87810.0,87775.0,0.04554823]
[1769534222518,0.0004657,87810.0,87781.0,0.16194989]
[1769534222722,0.02732,87835.0,87794.0,0.02464465]
[1769534222970,0.0842451,87835.0,87800.0,0.34036697]
[1769534223170,0.02334439,87838.0,87797.0,0.02464465]
[1769534223343,0.02334439,87838.0,87795.0,0.05725097]
[1769534223344,0.11692,87845.0,87806.0,0.02464465]
[1769534223552,0.11692,87845.0,87810.0,0.02464465]
[1769534224183,0.02334439,87851.0,87810.0,0.02464465]
[1769534224401,0.02334439,87851.0,87811.0,0.16194989]
[1769534224607,0.15793796,87850.0,87812.0,0.01865945]
[1769534224811,0.06140423,87868.0,87820.0,0.34036697]
[1769534225029,0.14026439,87867.0,87825.0,0.02464465]
[1769534225212,0.14026439,87867.0,87820.0,0.34036697]
[1769534225213,0.11692,87867.0,87828.0,0.16194989]
[1769534225464,0.11692,87867.0,87829.0,0.02464465]
[1769534225465,0.05690645,87864.0,87829.0,0.02464465]
[1769534225777,0.05690831,87861.0,87830.0,0.01740868]
[1769534225982,0.34036697,87860.0,87830.0,0.01740868]
[1769534226184,0.39727605,87860.0,87830.0,0.01754816]
[1769534226389,0.11692,87867.0,87830.0,0.01754816]
[1769534226835,0.34036697,87850.0,87830.0,0.00013948]
[1769534227242,0.3972827,87850.0,87830.0,0.00013948]
[1769534227444,0.34036697,87850.0,87830.0,0.00013948]
[1769534227649,0.05691826,87846.0,87830.0,0.00013948]
[1769534227860,0.00013948,87830.0,87795.0,0.16194989]
[1769534228057,0.00013971,87830.0,87798.0,0.18659454]
[1769534229039,0.34036697,87820.0,87796.0,0.01619499]
[1769534229204,0.34036697,87820.0,87780.0,0.18659454]
[1769534229404,0.34036697,87820.0,87783.0,0.16194989]
[1769534229602,0.02334439,87827.0,87783.0,0.16194989]
[1769534229803,0.02334439,87827.0,87785.0,0.18471688]
[1769534230017,0.00013971,87830.0,87796.0,0.18659454]
[1769534230345,0.00013971,87830.0,87802.0,0.02464465]
[1769534230554,0.00013971,87830.0,87805.0,0.16194989]
[1769534230775,0.34036697,87850.0,87809.0,0.02464465]
[1769534230981,0.34036697,87850.0,87810.0,0.18060934]
[1769534231348,0.34036697,87830.0,87810.0,0.01865945]
[1769534231552,0.02276699,87853.0,87809.0,0.00013971]
[1769534231553,0.18128235,87838.0,87809.0,0.00013971]
[1769534231772,0.15793796,87838.0,87809.0,0.00013971]
[1769534231970,0.34036697,87830.0,87809.0,0.00013971]
[1769534232194,0.36371136,87830.0,87809.0,0.00013971]
[1769534232410,0.05692899,87829.0,87809.0,0.00013971]
[1769534232612,0.22767374,87846.0,87809.0,0.00013971]
[1769534232816,0.02276699,87839.0,87810.0,0.01620896]
[1769534233014,0.56805551,87840.0,87810.0,0.01620896]
[1769534233213,0.09503744,87892.0,87810.0,0.01620896]
[1769534233214,0.34036697,87830.0,87810.0,0.01620896]
[1769534233420,0.34036697,87820.0,87809.0,0.00013971]
[1769534233596,0.05693193,87826.0,87809.0,0.00013971]
[1769534233819,0.15793796,87828.0,87809.0,0.00013971]
[1769534233820,0.21486765,87828.0,87809.0,0.00013971]
[1769534234159,0.15793796,87828.0,87809.0,0.00013971]
[1769534234351,0.05693212,87824.0,87809.0,0.05013971]
[1769534234494,0.0569327,87823.0,87809.0,0.05013971]
[1769534234695,0.05693185,87825.0,87809.0,0.05013971]
[1769534235094,0.21486776,87828.0,87809.0,0.05013971]
[1769534235323,0.15793796,87828.0,87809.0,0.05013971]
[1769534235829,0.15793796,87838.0,87809.0,0.05013971]
[1769534235984,0.21486156,87838.0,87809.0,0.05013971]
[1769534236184,0.02276699,87839.0,87809.0,0.05013971]
[1769534236381,0.05693001,87828.0,87809.0,0.05013971]
[1769534236623,0.34036697,87830.0,87809.0,0.05013971]
[1769534236624,0.05693164,87825.0,87809.0,0.05013971]
[1769534236839,0.05693141,87825.0,87809.0,0.05013971]
[1769534237041,0.34036697,87830.0,87809.0,0.05013971]
[1769534237237,0.05692696,87832.0,87809.0,0.05013971]
[1769534237439,0.02334439,87835.0,87809.0,0.05013971]
[1769534238922,0.15793796,87828.0,87796.0,0.02464465]
[1769534239141,0.15807788,87828.0,87796.0,0.18659454]
[1769534239573,0.15807788,87828.0,87797.0,0.18659454]
[1769534239782,0.00013992,87828.0,87790.0,0.34036697]
[1769534240023,0.05691194,87856.0,87817.0,0.02464465]
[1769534240240,0.05691194,87856.0,87800.0,0.02276699]
[1769534240241,0.34036697,87850.0,87821.0,0.02464465]
[1769534240460,0.34036697,87840.0,87822.0,0.01865945]
[1769534240669,0.15793796,87849.0,87811.0,0.18659454]
[1769534240670,0.02334439,87845.0,87811.0,0.18659454]
[1769534240886,0.34036697,87840.0,87785.0,0.16194989]
[1769534241100,0.02334439,87837.0,87800.0,0.02464465]
[1769534241296,0.08026815,87837.0,87801.0,0.17010918]
[1769534241503,0.02334439,87837.0,87801.0,0.19475383]
[1769534241704,0.05692429,87836.0,87801.0,0.19475383]
[1769534241953,0.02334439,87837.0,87801.0,0.19475383]
[1769534242191,0.02334439,87837.0,87801.0,0.17010918]
[1769534242367,0.02334439,87837.0,87804.0,0.02464465]
[1769534242711,0.02334439,87837.0,87804.0,0.08158923]
[1769534242993,0.02334439,87837.0,87805.0,0.1468318]
[1769534243281,0.15012066,87836.0,87805.0,0.1468318]
[1769534243797,0.08890679,87826.0,87794.0,0.0234376]
[1769534244005,0.11093177,87825.0,87795.0,0.16986634]
[1769534244178,0.15012066,87830.0,87796.0,0.13734311]
[1769534244376,0.11025946,87829.0,87797.0,0.02480826]
[1769534244582,0.02473467,87829.0,87797.0,0.02480826]
[1769534244792,0.08890679,87842.0,87811.0,0.15673349]
[1769534244996,0.20049427,87868.0,87811.0,0.15673349]
[1769534244997,0.02473467,87861.0,87831.0,0.15673349]
[1769534245196,0.16669727,87879.0,87812.0,0.04971005]
[1769534245197,0.15580265,87868.0,87832.0,0.02480826]
[1769534245376,0.34036697,87850.0,87821.0,0.02480826]
[1769534245607,0.34036697,87850.0,87814.0,0.18154175]
[1769534245608,0.15580265,87850.0,87814.0,0.18154175]
[1769534245808,0.34036697,87860.0,87815.0,0.03260417]
[1769534246021,0.02473467,87848.0,87815.0,0.03260417]
[1769534246222,0.15580265,87839.0,87815.0,0.03260417]
[1769534246393,0.15580265,87839.0,87811.0,0.00013992]
[1769534246592,0.02473467,87841.0,87811.0,0.00013992]
[1769534246815,0.15580265,87849.0,87814.0,0.08174641]
[1769534246988,0.15580265,87849.0,87815.0,0.15673349]
[1769534247195,0.15580265,87849.0,87811.0,0.00013992]
[1769534247196,0.34036697,87850.0,87811.0,0.00013992]
[1769534247432,0.18053732,87838.0,87811.0,0.00013992]
[1769534248105,0.15580265,87838.0,87811.0,0.00013992]
[1769534248315,0.18053732,87839.0,87811.0,0.00013992]
[1769534248571,0.15580265,87836.0,87811.0,0.00013992]
[1769534248775,0.15580265,87859.0,87813.0,0.02480826]
[1769534249016,0.02473467,87839.0,87814.0,0.01816817]
[1769534249186,0.02473467,87839.0,87811.0,0.00013992]
[1769534250480,0.15580265,87839.0,87811.0,0.00013992]
[1769534250704,0.34036697,87840.0,87811.0,0.00013992]
[1769534250871,0.18053732,87833.0,87811.0,0.00013992]
[1769534251072,0.02473467,87833.0,87811.0,0.00013992]
[1769534251621,0.15580265,87838.0,87811.0,0.00013992]
[1769534251836,0.02473467,87837.0,87811.0,0.00013992]
[1769534252022,0.15580265,87836.0,87811.0,0.00013992]
[1769534252450,0.05692556,87834.0,87811.0,0.00013992]
[1769534252608,0.15580265,87836.0,87811.0,0.00013992]
[1769534252818,0.04249854,87836.0,87811.0,0.00013992]
[1769534253019,0.15580265,87832.0,87811.0,0.00013992]
[1769534253287,0.02473467,87827.0,87811.0,0.00013992]
[1769534253481,0.18053732,87826.0,87811.0,0.00013992]
[1769534254732,0.02473467,87824.0,87790.0,0.02480826]
[1769534254917,0.02473467,87823.0,87790.0,0.08176206]
[1769534255120,0.02473467,87823.0,87792.0,0.02480826]
[1769534255312,0.00013992,87824.0,87798.0,0.0569489]
[1769534255536,0.15580265,87823.0,87794.0,0.02480826]
[1769534255747,0.15580265,87823.0,87795.0,0.06499384]
[1769534256749,0.00013992,87824.0,87798.0,0.17950048]
[1769534256986,0.00013992,87824.0,87799.0,0.15673349]
[1769534257579,0.00013992,87824.0,87800.0,0.05694752]
[1769534257932,0.00013992,87824.0,87799.0,0.15673349]
[1769534258087,0.00013992,87824.0,87800.0,0.02826227]
[1769534258609,0.15594257,87824.0,87800.0,0.02826227]
[1769534258819,0.15594257,87824.0,87798.0,0.02480826]
[1769534258962,0.15594257,87824.0,87799.0,0.05694763]
[1769534259169,0.15594257,87824.0,87798.0,0.02480826]
[1769534259892,0.15594257,87824.0,87799.0,0.05694772]
[1769534260064,0.15594257,87824.0,87799.0,0.21368121]
[1769534260302,0.15594257,87824.0,87800.0,0.05232417]
[1769534260924,0.22768316,87842.0,87801.0,0.15673349]
[1769534260925,0.15580265,87842.0,87801.0,0.15673349]
[1769534261124,0.15580265,87839.0,87802.0,0.15673349]
[1769534261302,0.15580265,87839.0,87801.0,0.0004657]
[1769534261668,0.15580265,87830.0,87801.0,0.0004657]
[1769534261869,0.02473467,87827.0,87802.0,0.0142274]
[1769534262059,0.15580265,87826.0,87802.0,0.0142274]
[1769534262411,0.18053732,87837.0,87805.0,0.15673349]
[1769534262653,0.18053732,87837.0,87806.0,0.02480826]
[1769534262862,0.18053732,87837.0,87808.0,0.02480826]
[1769534262863,0.02473467,87837.0,87808.0,0.02480826]
[1769534263069,0.02473467,87845.0,87804.0,0.02480826]
[1769534263314,0.02473467,87841.0,87805.0,0.06779509]
[1769534263499,0.15580265,87838.0,87806.0,0.02480826]
[1769534263707,0.34036697,87850.0,87806.0,0.02480826]
[1769534263708,0.02473467,87835.0,87806.0,0.02480826]
[1769534263890,0.15580265,87834.0,87806.0,0.02480826]
[1769534264998,0.15580265,87834.0,87808.0,0.15673349]
[1769534265204,0.05691759,87847.0,87811.0,0.15673349]
[1769534265409,0.05691937,87844.0,87812.0,0.02480826]
[1769534265562,0.02473467,87836.0,87809.0,0.03604188]
[1769534265764,0.18053732,87836.0,87808.0,0.02480826]
[1769534265966,0.02473467,87839.0,87808.0,0.02480826]
[1769534266171,0.15580265,87825.0,87799.0,0.05]
[1769534266375,0.34036697,87820.0,87799.0,0.05]
[1769534266572,0.15580265,87819.0,87790.0,0.02480826]
[1769534266962,0.15580265,87817.0,87791.0,0.02985418]
[1769534267434,0.15580265,87817.0,87793.0,0.02480826]
[1769534267998,0.00046656,87819.0,87791.0,0.08680757]
[1769534267999,0.00046656,87819.0,87791.0,0.02985418]
[1769534268224,0.15580265,87818.0,87794.0,0.02480826]
[1769534269071,0.00046656,87819.0,87796.0,0.02480826]
[1769534269279,0.00046656,87819.0,87795.0,0.02480826]
[1769534269501,0.00046656,87819.0,87798.0,0.02442127]
[1769534269713,0.00046656,87819.0,87805.0,0.02480826]
[1769534269918,0.34036697,87850.0,87809.0,0.02480826]
[1769534270127,0.05658418,87893.0,87809.0,0.02480826]
[1769534270128,0.15580265,87845.0,87812.0,0.15673349]
[1769534270329,0.18053732,87845.0,87815.0,0.02480826]
[1769534270540,0.18053732,87845.0,87817.0,0.02480826]
[1769534271167,0.15580265,87845.0,87819.0,0.15673349]
[1769534271375,0.15580265,87845.0,87815.0,0.07970469]
[1769534271376,0.15580265,87845.0,87820.0,0.02480826]
[1769534271591,0.15580265,87852.0,87822.0,0.02480826]
[1769534271806,0.02473467,87849.0,87823.0,0.01815418]
[1769534272025,0.15580265,87846.0,87815.0,0.02276699]
[1769534272202,0.18053732,87846.0,87816.0,0.02480826]
[1769534272591,0.34036697,87830.0,87811.0,0.02480826]
[1769534272791,0.02473467,87828.0,87799.0,0.02480826]
[1769534272989,0.15580265,87825.0,87800.0,0.01815418]
[1769534273308,0.18053732,87822.0,87789.0,0.14180826]
[1769534273539,0.15580265,87820.0,87790.0,0.02480826]
[1769534273865,0.00046685,87828.0,87790.0,0.02480826]
[1769534273866,0.26733393,87819.0,87790.0,0.02480826]
[1769534274013,0.15580265,87819.0,87791.0,0.10561087]
[1769534274218,0.14783777,87827.0,87795.0,0.02468016]
[1769534274418,0.11152087,87826.0,87796.0,0.02468016]
[1769534274620,0.25935864,87825.0,87796.0,0.02468016]
[1769534274848,0.11152087,87824.0,87796.0,0.02468016]
[1769534275037,0.11152087,87823.0,87799.0,0.02468016]
[1769534275195,0.11152087,87822.0,87799.0,0.14216342]
[1769534275395,0.11152087,87821.0,87800.0,0.02468016]
[1769534275600,0.00046685,87828.0,87804.0,0.14216342]
[1769534275843,0.11154036,87827.0,87806.0,0.14216342]
[1769534276045,0.11154036,87826.0,87808.0,0.02468016]
[1769534276247,0.00046685,87828.0,87807.0,0.01421634]
[1769534276248,0.11154036,87825.0,87807.0,0.01421634]
[1769534276456,0.25937813,87824.0,87799.0,0.02468016]
[1769534276693,0.25937813,87823.0,87799.0,0.02468016]
[1769534276891,0.11156852,87822.0,87799.0,0.02468016]
[1769534277067,0.14783777,87823.0,87799.0,0.02468016]
[1769534277275,0.11158985,87822.0,87799.0,0.02468016]
[1769534277475,0.14783777,87823.0,87800.0,0.00816316]
[1769534277673,0.11159022,87822.0,87800.0,0.03284332]
[1769534277879,0.14783777,87823.0,87800.0,0.03284332]
[1769534278089,0.11159013,87822.0,87800.0,0.03284332]
[1769534278284,0.14783777,87823.0,87800.0,0.03284332]
[1769534278486,0.11159292,87822.0,87801.0,0.01125598]
[1769534278666,0.14783777,87823.0,87801.0,0.01125598]
[1769534278863,0.11159296,87822.0,87801.0,0.01125598]
[1769534279067,0.14783777,87823.0,87801.0,0.01125598]
[1769534279302,0.1115961,87822.0,87800.0,0.02468016]
[1769534279636,0.00046685,87828.0,87800.0,0.02468016]
[1769534279767,0.11159639,87827.0,87800.0,0.02468016]
[1769534279970,0.14783777,87825.0,87800.0,0.02468016]
[1769534280212,0.11159639,87824.0,87800.0,0.02468016]
[1769534280461,0.11159639,87823.0,87801.0,0.02396106]
[1769534280631,0.11159639,87822.0,87801.0,0.02396106]
[1769534280833,0.14783777,87825.0,87801.0,0.02396106]
[1769534281043,0.11159574,87824.0,87801.0,0.02396106]
[1769534281251,0.11159574,87823.0,87801.0,0.02396106]
[1769534281452,0.00046685,87828.0,87787.0,0.02468016]
[1769534281619,0.14783777,87799.0,87773.0,0.02468016]
[1769534281819,0.34097661,87790.0,87765.0,0.02468016]
[1769534282077,0.34097661,87780.0,87760.0,0.0001]
[1769534282245,0.14783777,87769.0,87752.0,0.0004711]
[1769534282409,0.117,87784.0,87728.0,0.0003997]
[1769534282410,0.14783777,87761.0,87728.0,0.0003997]
[1769534282632,0.14783777,87759.0,87728.0,0.08016058]
[1769534282866,0.14830404,87759.0,87728.0,0.02316669]
[1769534283488,0.00046627,87759.0,87742.0,0.02276699]
[1769534283726,0.00046627,87759.0,87743.0,0.0507807]
[1769534283925,0.00046627,87759.0,87742.0,0.04744715]
[1769534284128,0.14783777,87772.0,87742.0,0.04744715]
[1769534284330,0.14783777,87772.0,87742.0,0.10489802]
[1769534284531,0.14783777,87772.0,87742.0,0.04791342]
[1769534284982,0.14671777,87772.0,87742.0,0.04791342]
[1769534285196,0.14671777,87772.0,87743.0,0.01637901]
[1769534285409,0.14783777,87794.0,87762.0,0.02131183]
[1769534285578,0.14783777,87794.0,87761.0,0.02276699]
[1769534285945,0.14783777,87792.0,87761.0,0.02276699]
[1769534286153,0.17162241,87792.0,87762.0,0.01044232]
[1769534286706,0.14783777,87809.0,87765.0,0.22787867]
[1769534286882,0.14783777,87807.0,87766.0,0.14058017]
[1769534287130,0.14783777,87805.0,87767.0,0.02468016]
[1769534287337,0.17162241,87805.0,87767.0,0.02217036]
[1769534287546,0.17162241,87805.0,87762.0,0.23833037]
[1769534287547,0.34097661,87780.0,87762.0,0.01044232]
[1769534287701,0.01,87767.0,87742.0,0.00046627]
[1769534287897,0.14783777,87768.0,87742.0,0.00046627]
[1769534288778,0.25517412,87791.0,87736.0,0.0019]
[1769534288779,0.14783777,87764.0,87736.0,0.0019]
[1769534288982,0.14783777,87762.0,87736.0,0.0019]
[1769534290503,0.14783777,87759.0,87736.0,0.0019]
[1769534290704,0.14783777,87758.0,87736.0,0.0019]
[1769534290941,0.14783777,87758.0,87727.0,0.02246042]
[1769534291164,0.00046627,87764.0,87727.0,0.02246042]
[1769534291368,0.02378464,87787.0,87740.0,0.34097661]
[1769534291572,0.02378464,87774.0,87740.0,0.00046627]
[1769534291743,0.14783777,87771.0,87741.0,0.00821332]
[1769534291980,0.14783777,87769.0,87740.0,0.00046627]
[1769534292712,0.14804427,87788.0,87751.0,0.02468016]
[1769534292911,0.14804427,87788.0,87753.0,0.01740248]
[1769534293117,0.02378464,87785.0,87753.0,0.01740248]
[1769534293410,0.02378464,87775.0,87740.0,0.00046627]
[1769534293585,0.14783777,87772.0,87741.0,0.05698583]
[1769534293806,0.14783777,87772.0,87740.0,0.14262969]
[1769534293988,0.14783777,87772.0,87740.0,0.37057329]
[1769534294193,0.14783777,87772.0,87745.0,0.02276699]
[1769534294414,0.02378464,87787.0,87751.0,0.02468016]
[1769534294648,0.14783777,87786.0,87752.0,0.02468016]
[1769534294831,0.02378464,87783.0,87749.0,0.05698032]
[1769534295061,0.02378464,87778.0,87746.0,0.07598971]
[1769534295225,0.34097661,87780.0,87746.0,0.01900768]
[1769534295226,0.02378464,87774.0,87746.0,0.01900768]
[1769534295429,0.02378464,87774.0,87746.0,0.05698243]
[1769534295628,0.02378464,87774.0,87742.0,0.02468016]
[1769534295901,0.34097661,87770.0,87734.0,0.14216342]
[1769534296108,0.02378464,87758.0,87727.0,0.11704]
[1769534296261,0.02378464,87757.0,87724.0,0.05699689]
[1769534296462,0.02378464,87757.0,87726.0,0.05699554]
[1769534296637,0.02378464,87757.0,87722.0,0.14216342]
[1769534296841,0.14783777,87756.0,87722.0,0.14216342]
[1769534297060,0.02378464,87755.0,87722.0,0.14216342]
[1769534297246,0.02378464,87755.0,87723.0,0.05699744]
[1769534297477,0.02378464,87755.0,87722.0,0.14216342]
[1769534297679,0.30348963,87770.0,87722.0,0.14216342]
[1769534297853,0.02378464,87769.0,87722.0,0.14216342]
[1769534298055,0.02378464,87765.0,87721.0,0.14216342]
[1769534298257,0.02378464,87765.0,87720.0,0.34097661]
[1769534298258,0.00046627,87765.0,87738.0,0.14216342]
[1769534298683,0.00046627,87765.0,87740.0,0.02468016]
[1769534298886,0.00046627,87765.0,87741.0,0.14216342]
[1769534299919,0.00046627,87765.0,87740.0,0.02468016]
[1769534300144,0.00046627,87765.0,87735.0,0.14216342]
[1769534300498,0.00046627,87765.0,87736.0,0.01649304]
[1769534300499,0.02378464,87758.0,87736.0,0.01649304]
[1769534300681,0.02378464,87758.0,87725.0,0.19915945]
[1769534300853,0.02378464,87758.0,87725.0,0.14216342]
[1769534301046,0.02378464,87758.0,87725.0,0.19915944]
[1769534301250,0.02378464,87758.0,87726.0,0.14216342]
[1769534301636,0.02378464,87758.0,87722.0,0.14216342]
[1769534301838,0.02378464,87758.0,87716.0,0.11704]
[1769534301839,0.14783777,87757.0,87723.0,0.0506005]
[1769534302047,0.17162241,87757.0,87725.0,0.19915906]
[1769534302253,0.17162241,87757.0,87725.0,0.14216342]
[1769534302632,0.17162241,87757.0,87725.0,0.19915939]
[1769534302841,0.17162241,87757.0,87723.0,0.0506005]
[1769534303057,0.17162241,87757.0,87724.0,0.02786028]
[1769534303275,0.02378464,87757.0,87728.0,0.02353547]
[1769534303499,0.02378464,87757.0,87729.0,0.14421244]
[1769534304370,0.48906989,87750.0,87723.0,0.02592034]
[1769534304555,0.00046627,87765.0,87711.0,0.22802087]
[1769534304556,0.34097661,87740.0,87711.0,0.02310386]
[1769534304765,0.14809328,87743.0,87711.0,0.02310386]
[1769534304766,0.17208206,87743.0,87713.0,0.14036776]
[1769534304959,0.17208206,87743.0,87702.0,0.34512315]
[1769534305159,0.02398878,87743.0,87713.0,0.14036776]
[1769534305369,0.02398878,87743.0,87715.0,0.14036776]
[1769534305559,0.02398878,87743.0,87712.0,0.02330386]
[1769534305560,0.02398878,87739.0,87712.0,0.0002]
[1769534305763,0.02398878,87736.0,87712.0,0.0002]
[1769534306111,0.02398878,87735.0,87712.0,0.0002]
[1769534306339,0.02398878,87728.0,87690.0,0.14036776]
[1769534306542,0.02398878,87724.0,87695.0,0.02209146]
[1769534306740,0.14809328,87721.0,87695.0,0.02209146]
[1769534306946,0.0004657,87721.0,87696.0,0.02276699]
[1769534307263,0.02398878,87736.0,87706.0,0.22803285]
[1769534307471,0.02398878,87748.0,87714.0,0.14036776]
[1769534307763,0.02398878,87728.0,87707.0,0.04648449]
[1769534307912,0.02276699,87746.0,87706.0,0.0004657]
[1769534307913,0.02398878,87724.0,87706.0,0.0004657]
[1769534308596,0.02276699,87751.0,87706.0,0.0004657]
[1769534308597,0.02398878,87740.0,87706.0,0.02356956]
[1769534308798,0.02398878,87739.0,87707.0,0.14036776]
[1769534308998,0.14809328,87736.0,87707.0,0.14036776]
[1769534309247,0.14809328,87732.0,87706.0,0.0004657]
[1769534309447,0.14809328,87728.0,87706.0,0.0004657]
[1769534309655,0.34097661,87730.0,87706.0,0.0004657]
[1769534309656,0.14809328,87725.0,87706.0,0.0004657]
[1769534309863,0.02398878,87733.0,87706.0,0.0004657]
[1769534310066,0.08838937,87762.0,87687.0,0.16347162]
[1769534310067,0.0004657,87706.0,87687.0,0.16347162]
[1769534310220,0.00077289,87706.0,87687.0,0.33757229]
[1769534310422,0.0004657,87706.0,87689.0,0.05701952]
[1769534310646,0.0004657,87706.0,87695.0,0.0057443]
[1769534311066,0.0004657,87706.0,87693.0,0.05701702]
[1769534311297,0.0004657,87706.0,87692.0,0.11708]
[1769534311430,0.0004657,87706.0,87677.0,0.02736]
[1769534311627,0.05699472,87728.0,87690.0,0.14036776]
[1769534311827,0.06354232,87738.0,87690.0,0.14036776]
[1769534311828,0.02398878,87727.0,87690.0,0.34144231]
[1769534312133,0.14809328,87726.0,87693.0,0.14036776]
[1769534312329,0.02398878,87723.0,87690.0,0.0004657]
[1769534312548,0.02398878,87719.0,87691.0,0.11708]
[1769534312741,0.14809328,87718.0,87690.0,0.0004657]
[1769534313066,0.14809328,87714.0,87690.0,0.00016539]
[1769534313274,0.14809328,87731.0,87691.0,0.14036776]
[1769534313492,0.14809328,87747.0,87697.0,0.02310386]
[1769534313772,0.05698197,87748.0,87704.0,0.02310386]
[1769534313773,0.14809328,87748.0,87704.0,0.02310386]
[1769534314000,0.02398878,87746.0,87700.0,0.34097661]
[1769534314241,0.08393586,87754.0,87715.0,0.14036776]
[1769534314454,0.08393586,87754.0,87720.0,0.02310386]
[1769534314667,0.17208206,87757.0,87724.0,0.02310386]
[1769534314876,0.05697662,87756.0,87724.0,0.02310386]
[1769534315100,0.14809328,87755.0,87724.0,0.02310386]
[1769534315332,0.05697874,87753.0,87724.0,0.02310386]
[1769534315584,0.14809328,87739.0,87712.0,0.02310386]
[1769534316041,0.02398878,87741.0,87712.0,0.14036776]
[1769534316216,0.02398878,87741.0,87713.0,0.02310386]
[1769534316533,0.02398878,87748.0,87714.0,0.02310386]
[1769534316687,0.14809328,87740.0,87715.0,0.01540115]
[1769534317090,0.34097661,87740.0,87715.0,0.01540115]
[1769534317297,0.14809328,87739.0,87699.0,0.09692]
[1769534317526,0.41018694,87765.0,87699.0,0.09692]
[1769534317527,0.56887157,87760.0,87702.0,0.02310386]
[1769534317723,0.02398878,87751.0,87704.0,0.14036776]
[1769534317926,0.02398878,87751.0,87711.0,0.02310386]
[1769534317927,0.14809328,87748.0,87711.0,0.02310386]
[1769534318125,0.14809328,87748.0,87713.0,0.0570037]
[1769534318331,0.14809328,87748.0,87714.0,0.16347162]
[1769534318561,0.14809328,87748.0,87715.0,0.02310386]
[1769534318763,0.02398878,87748.0,87715.0,0.02310386]
[1769534318955,0.02398878,87748.0,87701.0,0.02276699]
[1769534318956,0.34097661,87740.0,87706.0,0.02310386]
[1769534319313,0.02398878,87735.0,87706.0,0.02310386]
[1769534319518,0.02398878,87735.0,87707.0,0.14036776]
[1769534319767,0.02398878,87735.0,87708.0,0.05700734]
[1769534319988,0.34097661,87750.0,87704.0,0.05700994]
[1769534319989,0.57003903,87750.0,87704.0,0.05700994]
[1769534320212,0.17208206,87750.0,87715.0,0.14036776]
[1769534320417,0.17208206,87750.0,87716.0,0.02276699]
[1769534320724,0.00046599,87753.0,87720.0,0.02310386]
[1769534320852,0.00046599,87753.0,87722.0,0.02310386]
[1769534321057,0.00046599,87753.0,87723.0,0.01175689]
[1769534321256,0.14809328,87750.0,87723.0,0.01175689]
[1769534321472,0.00046599,87753.0,87725.0,0.02310386]
[1769534321727,0.14809328,87752.0,87725.0,0.02310386]
[1769534322024,0.14809328,87751.0,87725.0,0.02310386]
[1769534322691,0.14809328,87784.0,87751.0,0.00015851]
[1769534322936,0.11115375,87783.0,87764.0,0.02276699]
[1769534323113,0.00063,87788.0,87764.0,0.02276699]
[1769534323114,0.11115375,87782.0,87764.0,0.02276699]
[1769534323331,0.00063,87788.0,87764.0,0.02276699]
[1769534323548,0.11121694,87787.0,87764.0,0.02276699]
[1769534323740,0.11121694,87786.0,87764.0,0.02276699]
[1769534323896,0.11121694,87785.0,87751.0,0.00013992]
[1769534324094,0.17208206,87783.0,87751.0,0.00013992]
[1769534324294,0.14809328,87781.0,87751.0,0.00013992]
[1769534324614,0.11121694,87780.0,87754.0,0.14036776]
[1769534324821,0.00063,87788.0,87757.0,0.02310386]
[1769534324993,0.11124373,87787.0,87764.0,0.02276699]
[1769534325215,0.11124373,87786.0,87764.0,0.02276699]
[1769534325400,0.00063,87788.0,87757.0,0.02310386]
[1769534325401,0.11124373,87785.0,87765.0,0.02276699]
[1769534325771,0.34097661,87780.0,87751.0,0.00013992]
[1769534325924,0.48906989,87780.0,87750.0,0.02241691]
[1769534326084,0.48920971,87780.0,87750.0,0.02241691]
[1769534326505,0.1482331,87780.0,87750.0,0.02241691]
[1769534327327,0.1482331,87780.0,87751.0,0.02310386]
[1769534327656,0.00013982,87780.0,87764.0,0.02276699]
[1769534327963,0.00013982,87780.0,87765.0,0.02310386]
[1769534328746,0.00013982,87780.0,87752.0,0.04635608]
[1769534328997,0.00013982,87780.0,87755.0,0.11708]
[1769534329951,0.00013982,87780.0,87752.0,0.04635608]
[1769534329952,0.34111643,87780.0,87752.0,0.01899608]
[1769534330319,0.14809328,87778.0,87752.0,0.04176307]
[1769534330528,0.34097661,87770.0,87753.0,0.02276699]
[1769534330707,0.14809328,87773.0,87753.0,0.02276699]
[1769534330912,0.14809328,87773.0,87756.0,0.02276699]
[1769534331206,0.14809328,87773.0,87746.0,0.11708]
[1769534331383,0.14809328,87773.0,87756.0,0.02276699]
[1769534331587,0.32853013,87780.0,87756.0,0.02276699]
[1769534331749,0.01848581,87774.0,87742.0,0.02310386]
[1769534331989,0.14809328,87769.0,87742.0,0.02310386]